bitfinex-derivatives/quotes_SOLF0:USTF0_20240930
["timestamp","ask_amount","ask_price","bid_price","bid_amount"]
[1727715650887,3.2281,154.9,154.88,1.2525]
[1727715651883,3.2281,154.9,154.88,4.4809]
[1727715653486,15.51,154.92,154.85,69.88502]
[1727715653683,15.51,154.9,154.85,69.88502]
[1727715653988,3.2288,154.86,154.85,69.88502]
[1727715655187,3.2288,154.86,154.85,0.12502]
[1727715655486,3.2287,154.87,154.85,0.12502]
[1727715657482,18.6719669,154.9,154.85,0.12502]
[1727715657688,3.2282,154.89,154.86,3.2286]
[1727715658084,15.51,154.92,154.85,0.12502]
[1727715658280,3.2285,154.88,154.85,3.35392]
[1727715659098,3.2286,154.88,154.85,0.12502]
[1727715659690,3.2287,154.87,154.85,0.12502]
[1727715661377,1.306,154.98,154.85,0.12502]
[1727715661584,15.51,154.94,154.85,0.12502]
[1727715661781,15.51,154.95,154.88,15.51]
[1727715661984,3.2276,154.93,154.9,3.228]
[1727715663686,3.2273,154.94,154.91,3.2277]
[1727715663990,15.63502,154.97,154.89,15.51]
[1727715663991,0.12502,154.97,154.89,15.51]
[1727715664192,0.12502,154.97,154.9,1.3292]
[1727715664390,3.2273,154.94,154.91,3.2277]
[1727715664982,0.12502,154.97,154.91,3.2277]
[1727715665186,3.2274,154.93,154.91,3.2277]
[1727715665989,3.2273,154.94,154.91,3.2277]
[1727715666385,0.12502,154.97,154.91,15.51]
[1727715666788,0.12502,154.97,154.96,3.2268]
[1727715667294,0.12502,154.97,154.94,3.2271]
[1727715668196,3.2268,154.96,154.94,3.2271]
[1727715669293,3.2268,154.96,154.91,15.51]
[1727715669494,3.227,154.95,154.93,3.2273]
[1727715669792,3.227,154.95,154.91,15.51]
[1727715669990,3.227,154.95,154.92,3.2275]
[1727715671599,3.2273,154.94,154.91,3.2277]
[1727715672100,15.63502,154.97,154.9,16.8392]
[1727715672393,15.63502,154.97,154.9,4.5571]
[1727715672394,3.2275,154.93,154.9,4.5571]
[1727715672593,15.51,154.96,154.9,1.3292]
[1727715672795,3.2277,154.92,154.9,1.3292]
[1727715673896,3.2277,154.92,154.9,4.5572]
[1727715674891,3.2277,154.92,154.9,1.3292]
[1727715675092,15.51,154.94,154.85,15.63502]
[1727715675396,15.51,154.94,154.85,0.12502]
[1727715675588,3.2281,154.9,154.87,3.2285]
[1727715675992,15.51,154.94,154.86,60.59018205]
[1727715676195,3.17802666,154.95,154.85,3.35402]
[1727715676196,3.2284,154.89,154.85,3.35402]
[1727715677103,3.2284,154.89,154.86,3.2288]
[1727715678806,15.51,154.92,154.85,0.12502]
[1727715679003,3.2287,154.87,154.85,0.12502]
[1727715681497,3.2281,154.9,154.87,3.2286]
[1727715682303,3.22189838,154.93,154.85,0.12502]
[1727715682506,3.2283,154.89,154.86,3.2288]
[1727715683102,15.51,154.94,154.86,15.51]
[1727715683305,3.2279,154.91,154.88,3.2284]
[1727715684006,15.51,154.96,154.88,3.2284]
[1727715684202,3.2275,154.93,154.88,15.51]
[1727715684715,3.2275,154.93,154.9,3.2279]
[1727715685815,0.12502,154.97,154.88,15.51]
[1727715685998,0.12502,154.97,154.89,3.2281]
[1727715685999,3.2276,154.92,154.89,3.2281]
[1727715689607,15.51,154.96,154.88,18.7384]
[1727715689810,15.51,154.91,154.85,0.12502]
[1727715690016,3.2287,154.87,154.85,0.12502]
[1727715690208,15.51,154.91,154.85,0.12502]
[1727715690711,3.2285,154.88,154.85,3.35392]
[1727715691408,3.2282,154.9,154.85,3.35392]
[1727715691612,15.51,154.91,154.85,3.35392]
[1727715692111,3.2285,154.88,154.85,3.35392]
[1727715693112,15.51,154.91,154.85,0.12502]
[1727715693316,3.2288,154.86,154.85,0.12502]
[1727715703028,3.2288,154.87,154.85,0.12502]
[1727715705237,3.2288,154.86,154.85,0.12502]
[1727715708636,3.2287,154.87,154.85,0.12502]
[1727715709036,15.51,154.89,154.85,0.12502]
[1727715710033,3.2288,154.87,154.85,0.12502]
[1727715712136,3.2283,154.89,154.87,3.2286]
[1727715712428,3.2283,154.89,154.85,0.12502]
[1727715712640,3.2281,154.9,154.87,3.2286]
[1727715712842,3.26269863,154.92,154.86,1.3532]
[1727715713140,15.51,154.95,154.86,1.3532]
[1727715713327,18.66156205,154.95,154.89,3.2282]
[1727715713835,18.66156205,154.95,154.86,1.3532]
[1727715714242,0.98246924,154.94,154.86,1.3532]
[1727715714638,3.2281,154.9,154.87,3.2285]
[1727715716443,3.2284,154.89,154.86,4.5819]
[1727715717343,3.2278,154.91,154.86,4.5819]
[1727715717646,15.51,154.89,154.85,0.12502]
[1727715718038,3.2288,154.86,154.85,0.12502]
[1727715722650,3.2299,154.81,154.79,0.12502]
[1727715723549,3.2297,154.82,154.79,0.12502]
[1727715724245,3.2297,154.82,154.79,3.35522]
[1727715724449,3.2295,154.83,154.79,0.12502]
[1727715724648,15.51,154.88,154.79,15.63502]
[1727715725047,3.2292,154.85,154.8,1.3024]
[1727715725646,3.2292,154.85,154.82,3.2295]
[1727715725850,16.7816,154.9,154.81,15.51]
[1727715725851,3.2288,154.87,154.81,15.51]
[1727715726246,3.2288,154.87,154.83,15.51]
[1727715726751,15.63502,154.91,154.83,15.51]
[1727715726943,3.2285,154.88,154.83,15.51]
[1727715727251,0.12502,154.91,154.85,15.51]
[1727715727550,3.2281,154.9,154.87,3.2285]
[1727715728348,0.12502,154.91,154.87,3.2285]
[1727715728549,3.2282,154.89,154.87,3.2285]
[1727715729753,0.12502,154.91,154.88,3.2284]
[1727715729942,0.12502,154.91,154.86,1.3024]
[1727715730147,3.35282,154.91,154.87,15.51]
[1727715730348,0.12502,154.91,154.89,3.2281]
[1727715731055,0.12502,154.91,154.9,3.228]
[1727715731447,0.12502,154.91,154.87,15.51]
[1727715731658,0.12502,154.91,154.86,1.3024]
[1727715732354,3.228,154.9,154.88,3.2284]
[1727715732750,3.35292,154.91,154.88,3.2284]
[1727715734347,0.12502,154.91,154.86,1.3024]
[1727715734551,3.2284,154.89,154.86,4.5311]
[1727715736060,0.12502,154.91,154.86,4.5311]
[1727715736261,15.63502,154.91,154.86,1.3024]
[1727715736654,3.2286,154.88,154.86,1.3024]
[1727715737055,0.12502,154.91,154.86,4.531]
[1727715737252,3.2283,154.89,154.86,1.3024]
[1727715737655,3.2283,154.89,154.86,4.5311]
[1727715737856,3.2286,154.88,154.86,1.3024]
[1727715738863,15.63502,154.91,154.84,4.5542]
[1727715739068,15.63502,154.91,154.84,1.325]
[1727715739563,3.229,154.86,154.84,1.325]
[1727715743165,3.229,154.86,154.84,4.5543]
[1727715743365,3.2285,154.88,154.84,1.325]
[1727715743967,15.63502,154.91,154.85,3.2289]
[1727715743968,3.2287,154.87,154.85,3.2289]
[1727715746166,15.63502,154.91,154.84,1.325]
[1727715746371,3.2288,154.86,154.84,4.5542]
[1727715746973,3.2287,154.87,154.84,4.5542]
[1727715749576,3.2287,154.87,154.84,14.4742]
[1727715751271,3.2292,154.85,154.82,3.2296]
[1727715751471,13.1492,154.85,154.82,3.2296]
[1727715751871,9.92,154.85,154.82,3.2296]
[1727715752073,3.2293,154.84,154.82,3.2296]
[1727715752279,9.92,154.83,154.8,4.538]
[1727715752579,9.92,154.82,154.8,1.308]
[1727715753375,3.23,154.81,154.79,1.38682]
[1727715753580,3.23,154.81,154.8,13.52433023]
[1727715754478,3.23,154.81,154.8,13.52448735]
[1727715755271,3.2301,154.8,154.79,0.12502]
[1727715755476,3.2301,154.8,154.79,13.65047869]
[1727715756270,3.2301,154.8,154.79,6.28700828]
[1727715756877,3.2301,154.8,154.79,0.12502]
[1727715756878,18.7401,154.8,154.79,0.12502]
[1727715759184,3.2301,154.8,154.79,0.12502]
[1727715762174,3.2301,154.8,154.73,15.63502]
[1727715762175,15.51,154.81,154.73,0.12502]
[1727715762381,15.51,154.77,154.73,0.12502]
[1727715762690,15.51,154.75,154.73,0.12502]
[1727715763081,3.2313,154.74,154.73,0.12502]
[1727715763385,15.51,154.74,154.67,0.12502]
[1727715763589,15.51,154.73,154.67,0.12502]
[1727715763882,3.2319,154.72,154.69,3.2324]
[1727715765089,3.2319,154.72,154.68,3.2325]
[1727715765289,3.232,154.71,154.67,0.12502]
[1727715765586,3.232,154.71,154.67,3.35772]
[1727715767580,3.2325,154.69,154.67,0.12502]
[1727715778414,3.26824852,154.75,154.67,0.12502]
[1727715778604,1.41252,154.79,154.67,0.12502]
[1727715778605,15.51,154.73,154.67,0.12502]
[1727715778800,18.82188926,154.73,154.67,0.12502]
[1727715779006,3.2323,154.7,154.67,3.35772]
[1727715779805,15.51,154.75,154.67,0.12502]
[1727715780005,15.51,154.75,154.68,1.2668]
[1727715780201,15.51,154.75,154.68,2.5338]
[1727715780711,15.51,154.75,154.71,3.2318]
[1727715780712,3.2315,154.74,154.71,3.2318]
[1727715781109,3.2316,154.73,154.7,3.2321]
[1727715782011,3.2314,154.74,154.71,3.232]
[1727715782511,1.3083,154.78,154.68,2.5338]
[1727715782512,15.51,154.78,154.68,2.5338]
[1727715782809,1.41252,154.79,154.71,15.51]
[1727715782810,0.12502,154.79,154.71,15.51]
[1727715784109,3.35542,154.79,154.75,3.2309]
[1727715784312,3.35542,154.79,154.71,15.51]
[1727715784805,3.2305,154.78,154.71,15.51]
[1727715785211,0.12502,154.79,154.77,3.2307]
[1727715785816,3.35542,154.79,154.71,15.51]
[1727715786107,0.12502,154.79,154.74,15.51]
[1727715786310,0.12502,154.79,154.75,2.6156]
[1727715786709,0.12502,154.79,154.77,3.2306]
[1727715787609,3.2296,154.83,154.75,18.1256]
[1727715787809,0.12502,154.85,154.77,15.51]
[1727715788013,0.12502,154.85,154.79,15.51]
[1727715788313,3.35422,154.85,154.82,3.2295]
[1727715788706,0.12502,154.85,154.79,15.51]
[1727715789510,3.35422,154.85,154.81,3.2297]
[1727715789907,0.12502,154.85,154.81,3.2297]
[1727715791206,0.12502,154.85,154.79,15.51]
[1727715791407,0.12502,154.85,154.84,3.2293]
[1727715792015,94.99970345,154.92,154.85,3.229]
[1727715792216,79.48970345,154.92,154.86,1.2534]
[1727715792717,3.2282,154.9,154.86,4.4822]
[1727715792913,79.48970345,154.92,154.86,4.4822]
[1727715793216,94.99970345,154.92,154.86,4.4822]
[1727715794317,3.2282,154.89,154.86,4.4822]
[1727715794521,79.48970345,154.92,154.86,1.2534]
[1727715794714,79.48970345,154.92,154.87,15.51]
[1727715794909,3.2273,154.94,154.87,15.51]
[1727715795110,15.51,154.96,154.9,3.228]
[1727715795515,3.2275,154.93,154.9,3.228]
[1727715795712,3.2275,154.93,154.87,15.51]
[1727715795913,3.2275,154.93,154.89,3.2281]
[1727715796913,15.51,154.96,154.89,3.2281]
[1727715797221,3.2276,154.92,154.89,3.2281]
[1727715798808,3.228,154.9,154.86,1.2534]
[1727715799321,3.35292,154.91,154.88,3.2284]
[1727715801415,0.12502,154.91,154.87,15.51]
[1727715802011,0.12502,154.91,154.89,3.228]
[1727715802413,3.2271,154.95,154.9,3.228]
[1727715802718,3.2271,154.95,154.88,15.51]
[1727715803015,3.2271,154.95,154.92,3.2275]
[1727715803822,0.12502,154.97,154.9,15.51]
[1727715804416,3.2269,154.96,154.93,3.2273]
[1727715807222,3.35162,154.97,154.94,3.227]
[1727715807419,3.35162,154.97,154.92,15.51]
[1727715807420,0.12502,154.97,154.92,15.51]
[1727715807611,0.12502,154.97,154.93,1.2636]
[1727715807926,0.12502,154.97,154.94,3.2271]
[1727715808623,3.35172,154.97,154.94,3.2271]
[1727715810023,0.12502,154.97,154.95,3.2269]
[1727715810722,0.12502,154.97,154.94,15.51]
[1727715810917,0.12502,154.97,154.96,3.2268]
[1727715811123,3.226,155.0,154.94,15.51]
[1727715811427,3.226,155.0,154.97,3.2264]
[1727715812315,0.12502,155.03,154.94,15.51]
[1727715812316,3.2258,155.01,154.98,3.2263]
[1727715812621,0.12502,155.03,154.98,15.51]
[1727715812824,0.12502,155.03,154.99,1.2764]
[1727715813022,0.12502,155.03,155.01,3.2257]
[1727715814328,0.12502,155.03,155.02,3.2255]
[1727715814626,0.12502,155.09,155.02,15.51]
[1727715814828,3.2246,155.07,155.04,3.225]
[1727715815415,3.2243,155.08,155.04,3.225]
[1727715816223,3.2245,155.07,155.04,3.225]
[1727715816627,0.12502,155.09,155.04,3.225]
[1727715816829,3.2244,155.08,155.04,3.225]
[1727715817025,0.12502,155.09,155.02,15.51]
[1727715817329,0.12502,155.09,155.06,15.51]
[1727715817721,0.12502,155.09,155.07,3.2243]
[1727715818122,0.12502,155.09,155.06,15.51]
[1727715818327,0.12502,155.09,155.08,3.2243]
[1727715822127,0.12502,155.09,155.07,4.5108]
[1727715823133,3.34912,155.09,155.07,4.5108]
[1727715823330,0.12502,155.09,155.07,4.5108]
[1727715823635,0.12502,155.09,155.07,1.2864]
[1727715824337,3.34922,155.09,155.07,1.2864]
[1727715824529,0.12502,155.09,155.07,1.2864]
[1727715824734,0.12502,155.09,155.05,69.7]
[1727715825036,3.2243,155.08,155.05,69.7]
[1727715825438,0.12502,155.09,155.05,69.7]
[1727715825732,0.12502,155.09,155.02,16.8718]
[1727715826434,3.2246,155.07,155.04,3.225]
[1727715826831,0.12502,155.09,155.0,3.2968698]
[1727715827025,15.51,155.01,154.92,3.8444]
[1727715827237,15.51,155.01,154.93,3.18591948]
[1727715827638,3.2263,154.99,154.94,3.2271]
[1727715827935,15.51,155.01,154.93,3.18591948]
[1727715828328,3.2263,154.98,154.93,3.2273]
[1727715828528,3.2263,154.98,154.92,3.8444]
[1727715828725,3.2263,154.98,154.92,22.50707914]
[1727715828927,3.2263,154.98,154.93,3.2272]
[1727715830837,3.2263,154.98,154.92,7.072]
[1727715831836,3.2263,154.98,154.92,2.563]
[1727715832439,3.2263,154.98,154.92,1.2696]
[1727715841440,18.7363,154.98,154.92,1.2696]
[1727715850643,15.51,154.93,154.91,0.12502]
[1727715851043,3.2276,154.92,154.91,0.12502]
[1727715853844,19.71872978,154.92,154.91,0.12502]
[1727715854051,19.71872978,154.92,154.87,1.2802]
[1727715854052,3.2287,154.88,154.87,1.2802]
[1727715854348,15.51,154.9,154.85,0.12502]
[1727715854743,3.229,154.87,154.85,0.12502]
[1727715854948,15.51,154.9,154.85,0.12502]
[1727715855353,15.51,154.88,154.85,0.12502]
[1727715855656,15.51,154.9,154.85,0.12502]
[1727715855856,0.98100297,154.89,154.85,0.12502]
[1727715856251,3.229,154.87,154.85,0.12502]
[1727715858256,3.2292,154.86,154.85,0.12502]
[1727715862146,3.25399115,154.88,154.85,0.12502]
[1727715862353,15.51,154.9,154.85,0.12502]
[1727715863252,3.2289,154.88,154.85,3.35432]
[1727715863458,3.2289,154.88,154.85,0.12502]
[1727715864255,15.51,154.92,154.85,0.12502]
[1727715864456,15.51,154.92,154.86,3.229]
[1727715864951,15.51,154.92,154.85,0.12502]
[1727715865151,15.51,154.93,154.86,15.51]
[1727715865461,3.228,154.92,154.86,15.51]
[1727715865657,3.228,154.92,154.89,3.2285]
[1727715865859,15.51,154.93,154.86,15.51]
[1727715866156,3.2281,154.91,154.88,3.2286]
[1727715866952,3.2284,154.9,154.87,3.2288]
[1727715867258,15.51,154.93,154.85,0.12502]
[1727715867657,3.2285,154.9,154.86,3.229]
[1727715868758,3.2285,154.9,154.87,3.2289]
[1727715871559,15.51,154.93,154.88,3.2287]
[1727715871755,3.2282,154.91,154.88,3.2287]
[1727715872667,15.51,154.93,154.88,3.2287]
[1727715872858,15.51,154.93,154.85,0.12502]
[1727715873056,15.51,154.91,154.85,0.12502]
[1727715873660,15.51,154.91,154.86,3.2291]
[1727715874166,3.2288,154.88,154.86,3.2291]
[1727715874559,15.51,154.93,154.88,3.2287]
[1727715874960,3.228,154.92,154.88,3.2287]
[1727715875256,15.51,154.93,154.88,3.2287]
[1727715875659,3.2282,154.91,154.88,3.2287]
[1727715876768,15.51,154.93,154.85,3.28480439]
[1727715876965,15.51,154.95,154.86,15.51]
[1727715877470,3.2279,154.92,154.89,3.2284]
[1727715877768,15.51,154.95,154.88,1.2862]
[1727715878664,3.2283,154.91,154.88,4.5148]
[1727715878858,15.51,154.93,154.88,1.2862]
[1727715879867,15.51,154.91,154.88,1.2862]
[1727715880066,15.51,154.91,154.87,1.3235]
[1727715881358,3.2287,154.89,154.87,1.3235]
[1727715882467,38.77,154.87,154.67,0.12502]
[1727715882662,15.51,154.76,154.68,2.6163]
[1727715882967,3.28155793,154.75,154.68,2.6163]
[1727715883461,3.2316,154.75,154.68,2.6163]
[1727715883660,15.51,154.76,154.68,2.6163]
[1727715884064,18.72469942,154.76,154.68,2.6163]
[1727715885167,3.2321,154.72,154.68,2.6163]
[1727715886169,3.2319,154.73,154.68,2.6163]
[1727715889678,15.51,154.72,154.68,2.6163]
[1727715890173,3.2327,154.7,154.68,2.6163]
[1727715890874,3.2327,154.69,154.68,2.6163]
[1727715891078,15.51,154.7,154.67,69.92502]
[1727715891276,3.2329,154.68,154.67,69.92502]
[1727715891477,18.7429,154.68,154.67,69.92502]
[1727715893672,3.2329,154.68,154.67,69.92502]
[1727715898575,3.2329,154.68,154.67,0.12502]
[1727715901284,18.7429,154.68,154.67,0.12502]
[1727715906182,3.2329,154.68,154.67,0.12502]
[1727715911289,18.7426,154.7,154.67,0.12502]
[1727715911491,15.51,154.73,154.67,0.12502]
[1727715911686,15.51,154.71,154.67,0.12502]
[1727715913285,3.2328,154.69,154.67,0.12502]
[1727715913986,15.51,154.71,154.67,0.12502]
[1727715914187,15.51,154.71,154.67,3.35802]
[1727715914384,15.51,154.73,154.67,0.12502]
[1727715914590,15.51,154.69,154.67,0.12502]
[1727715914790,3.2329,154.68,154.67,0.12502]
[1727715915790,15.51,154.69,154.67,0.12502]
[1727715916093,18.7427,154.69,154.67,0.12502]
[1727715917697,3.2326,154.7,154.67,3.35812]
[1727715918194,15.51,154.73,154.67,0.12502]
[1727715918413,15.51,154.75,154.67,0.12502]
[1727715918593,15.51,154.75,154.67,1.46462]
[1727715918894,3.2318,154.74,154.7,3.2323]
[1727715919089,3.2318,154.74,154.67,1.46462]
[1727715919290,15.51,154.75,154.7,3.2324]
[1727715919495,15.51,154.75,154.67,1.46462]
[1727715919496,3.2317,154.74,154.67,1.46462]
[1727715919999,3.2319,154.73,154.7,3.2324]
[1727715923900,3.2319,154.73,154.68,4.5392]
[1727715923901,15.51,154.73,154.68,4.5392]
[1727715924304,3.2324,154.71,154.68,4.5392]
[1727715925000,3.2325,154.7,154.68,1.3064]
[1727715925302,15.51,154.73,154.68,1.3064]
[1727715925598,3.2327,154.69,154.67,0.12502]
[1727715926098,15.51,154.71,154.67,0.12502]
[1727715926302,3.2326,154.7,154.67,3.35802]
[1727715927000,3.2326,154.7,154.68,3.2329]
[1727715927899,3.1761986,154.74,154.67,0.12502]
[1727715927900,15.51,154.71,154.67,0.12502]
[1727715928203,3.2329,154.68,154.67,0.12502]
[1727715930906,3.2328,154.69,154.67,0.12502]
[1727715931304,3.2328,154.69,154.67,3.35812]
[1727715931602,3.2328,154.69,154.67,0.12502]
[1727715932093,15.51,154.71,154.67,0.12502]
[1727715932294,3.2329,154.68,154.67,0.12502]
[1727715936500,3.2328,154.69,154.67,0.12502]
[1727715936999,3.2325,154.7,154.67,0.12502]
[1727715937204,15.51,154.71,154.67,0.12502]
[1727715937905,3.2329,154.69,154.67,0.12502]
[1727715938304,15.51,154.71,154.67,0.12502]
[1727715939208,3.2329,154.68,154.67,0.12502]
[1727715945716,13.1729,154.68,154.67,0.12502]
[1727715947821,9.94,154.68,154.67,0.12502]
[1727715948026,3.25905808,154.72,154.67,0.12502]
[1727715948027,9.94,154.69,154.67,0.12502]
[1727715948624,13.1729,154.69,154.67,0.12502]
[1727715951220,9.94,154.69,154.67,0.12502]
[1727715951423,3.2329,154.68,154.67,0.12502]
[1727715952030,3.2324,154.71,154.67,0.12502]
[1727715952230,6.4621,154.77,154.67,0.12502]
[1727715952231,9.94,154.68,154.67,0.12502]
[1727715952733,13.1729,154.68,154.67,0.12502]
[1727715955239,9.94,154.68,154.67,3.35812]
[1727715955427,6.4621,154.77,154.67,0.12502]
[1727715955428,3.29948903,154.75,154.67,0.12502]
[1727715955628,13.1722,154.72,154.67,0.12502]
[1727715955827,13.1722,154.72,154.69,3.2326]
[1727715956437,13.1722,154.72,154.7,3.2325]
[1727715956837,13.1722,154.72,154.67,10.06502]
[1727715957137,13.1722,154.72,154.69,3.2326]
[1727715957340,13.1723,154.71,154.69,3.2326]
[1727715958534,9.94,154.71,154.67,0.12502]
[1727715958739,3.2325,154.7,154.68,3.2328]
[1727715959330,13.1724,154.71,154.68,3.2328]
[1727715961636,13.1724,154.71,154.69,3.2327]
[1727715961839,9.94,154.71,154.67,0.12502]
[1727715962041,3.22652541,154.75,154.68,6.78363553]
[1727715962237,9.94,154.69,154.67,0.12502]
[1727715962733,3.2329,154.68,154.67,0.12502]
[1727715963538,3.2339,154.64,154.58,12.5379]
[1727715963735,9.94,154.63,154.58,12.5379]
[1727715964050,13.1742,154.62,154.59,3.2347]
[1727715964342,13.1742,154.62,154.61,76.77079033]
[1727715964539,13.1742,154.62,154.61,69.98502]
[1727715964839,13.1742,154.62,154.61,0.12502]
[1727715966935,3.2349,154.59,154.57,6.78006457]
[1727715967235,3.2349,154.59,154.55,60.82823762]
[1727715967236,9.94,154.58,154.55,60.82823762]
[1727715967446,9.94,154.58,154.56,6.77743587]
[1727715967645,13.175,154.58,154.55,0.12502]
[1727715968046,13.175,154.58,154.55,3.36062]
[1727715968347,13.1752,154.57,154.55,0.12502]
[1727715968545,9.94,154.57,154.55,0.12502]
[1727715969443,13.1753,154.57,154.55,0.12502]
[1727715970347,13.1754,154.56,154.55,0.12502]
[1727715974651,9.94,154.51,154.49,0.12502]
[1727715975040,3.2367,154.5,154.49,0.12502]
[1727715977248,3.27141261,154.52,154.49,0.12502]
[1727715977249,3.2364,154.52,154.49,0.12502]
[1727715977451,9.94,154.51,154.49,0.12502]
[1727715977750,3.2364,154.52,154.49,0.12502]
[1727715977942,15.54,154.53,154.49,0.12502]
[1727715978144,18.7762,154.53,154.5,3.2366]
[1727715978346,15.54,154.53,154.5,3.2366]
[1727715979553,15.54,154.53,154.51,3.2364]
[1727715980249,15.54,154.53,154.5,3.2366]
[1727715980450,18.7761,154.53,154.5,3.2366]
[1727715980953,3.2366,154.51,154.49,0.12502]
[1727715981153,18.7766,154.51,154.49,0.12502]
[1727715981348,15.54,154.51,154.49,0.12502]
[1727715981548,3.2367,154.5,154.49,0.12502]
[1727715981752,18.7767,154.5,154.49,0.12502]
[1727715982253,18.7767,154.51,154.49,0.12502]
[1727715982457,15.54,154.51,154.49,0.12502]
[1727715982754,3.2367,154.5,154.49,0.12502]
[1727715984455,18.7766,154.51,154.49,0.12502]
[1727715985357,3.2367,154.5,154.49,0.12502]
[1727715986856,18.7765,154.51,154.49,0.12502]
[1727715987363,15.54,154.51,154.49,0.12502]
[1727715988253,3.2367,154.5,154.49,0.12502]
[1727715989158,15.54,154.51,154.49,0.12502]
[1727715989963,18.7766,154.51,154.49,0.12502]
[1727715990165,15.54,154.51,154.49,0.12502]
[1727715990357,15.54,154.51,154.49,3.36182]
[1727715990960,3.2364,154.52,154.49,3.36182]
[1727715991860,18.7761,154.53,154.49,0.12502]
[1727715992058,15.54,154.53,154.49,0.12502]
[1727715992659,3.2364,154.52,154.49,3.36182]
[1727715992859,3.2364,154.52,154.49,0.12502]
[1727715993059,15.54,154.53,154.49,0.12502]
[1727715993960,3.2364,154.52,154.49,0.12502]
[1727715994667,3.2364,154.52,154.49,3.36192]
[1727715996561,15.54,154.53,154.49,0.12502]
[1727715996761,18.80870152,154.57,154.49,0.12502]
[1727715996958,409.50930356,154.64,154.49,15.66502]
[1727715996959,15.54,154.59,154.49,15.66502]
[1727715997459,3.2353,154.57,154.54,3.2357]
[1727715998458,3.2353,154.57,154.53,3.236]
[1727715999572,15.54,154.57,154.52,3.2361]
[1727716000464,3.2357,154.55,154.52,3.2361]
[1727716001365,15.54,154.57,154.49,0.12502]
[1727716001563,3.236,154.54,154.51,3.2363]
[1727716002468,3.2357,154.55,154.52,3.2363]
[1727716003273,15.54,154.57,154.49,0.12502]
[1727716003571,9.95,154.56,154.51,9.95]
[1727716003961,13.1854,154.56,154.51,9.95]
[1727716004161,9.95,154.55,154.5,9.95]
[1727716004866,13.1856,154.55,154.52,3.2361]
[1727716006967,9.95,154.56,154.51,9.95]
[1727716007571,9.95,154.56,154.54,3.2357]
[1727716009370,13.1855,154.56,154.54,3.2357]
[1727716010873,9.95,154.57,154.55,3.2355]
[1727716011074,13.1851,154.58,154.52,9.95]
[1727716011270,79.62930356,154.64,154.57,3.2352]
[1727716011271,13.1849,154.59,154.57,3.2352]
[1727716012478,13.185,154.58,154.56,3.2353]
[1727716014272,13.185,154.58,154.55,5.8978]
[1727716014478,9.95,154.56,154.5,9.95]
[1727716014679,9.95,154.56,154.5,12.5572]
[1727716015068,13.1856,154.56,154.53,3.2359]
[1727716015476,13.1856,154.56,154.5,12.5572]
[1727716015773,3.2357,154.55,154.5,12.5572]
[1727716016377,3.2357,154.55,154.53,3.236]
[1727716016576,79.62930356,154.64,154.54,9.95]
[1727716016776,13.30952,154.61,154.56,9.95]
[1727716017078,13.30952,154.61,154.58,3.2349]
[1727716017575,13.30952,154.61,154.59,3.2347]
[1727716017978,9.95,154.6,154.5,2.6072]
[1727716018183,9.95,154.51,154.5,2.6072]
[1727716018380,9.95,154.51,154.49,3.36182]